Cogmind - Beta 17.1 @@@ ROGUE MODE // 2026.08.24 @ 23:53:03 Player: APerTAS Result: Core destroyed Performance ------------- Evolutions (2) 1000 Regions Visited (4) 800 Robots Destroyed (4) 20 Value Destroyed (359) 359 Prototype IDs (0) 0 Alien Tech Used (0) 0 Bonus (433) 433 TOTAL SCORE: 2612 Bonus ------- Pacifist 200 Follower Combat Kills 33 Entered Garrisons 200 Cogmind --------- Core Integrity 0/550 Matter 300/300 Energy 100/100 System Corruption 5% Temperature Cool (0) Movement Core (50) Location -8/Garrison Parts ------- > --- POWER (1) -------- (None) > --- PROPULSION (2) --- (None) > --- UTILITY (2) ------ (None) > --- WEAPON (6) ------- (None) > --- INVENTORY (5) ---- Relay Coupler [Grunt] (22) Relay Coupler [Brawler] (27) Relay Coupler [Hunter] (12) Peak State ------------ > --- POWER ------------ (None) > --- PROPULSION ------- (None) > --- UTILITY ---------- (None) > --- WEAPON ----------- Flail > --- INVENTORY -------- Relay Coupler [Grunt] Relay Coupler [Brawler] Relay Coupler [Hunter] [Rating: 3] Favorites ----------- Power None Propulsion None Utility None Weapon Flail Impact Weapon Flail Build | -11 -10 -9 -8 -8 ------- Run | Yrd Mat Mat Mat Gar Slots Evolved 4 | . . 2 2 . Power . | . . . . . Propulsion . | . . . . . Utility . | . . . . . Weapon 4 | . . 2 2 . Parts Attached 1 | . . 1 . . Power . | . . . . . Engine . | . . . . . Core . | . . . . . Reactor . | . . . . . Propulsion . | . . . . . Treads . | . . . . . Leg . | . . . . . Wheel . | . . . . . Hover . | . . . . . Flight . | . . . . . Utility . | . . . . . Device . | . . . . . Storage . | . . . . . Processor . | . . . . . Hackware . | . . . . . Protection . | . . . . . Artifact . | . . . . . Weapon 1 | . . 1 . . Energy Gun . | . . . . . Energy Cannon . | . . . . . Ballistic Gun . | . . . . . Ballistic Cannon . | . . . . . Launcher . | . . . . . Special Weapon . | . . . . . Impact Weapon 1 | . . 1 . . Slashing Weapon . | . . . . . Piercing Weapon . | . . . . . Special Melee Weapon . | . . . . . Unidentified Prototypes . | . . . . . Parts Lost 1 | . . . . 1 Power . | . . . . . Propulsion . | . . . . . Utility . | . . . . . Weapon 1 | . . . . 1 Highest Loss Streak 1 | . . . . 1 To Critical Strikes . | . . . . . Average Backups . | . . . . 1 Power . | . . . . . Propulsion . | . . . . . Utility . | . . . . 1 Weapon . | . . . . . Tool/Special . | . . . . . Unused Backups 3 | . . . . 3 Power . | . . . . . Propulsion . | . . . . . Utility 3 | . . . . 3 Weapon . | . . . . . Tool/Special . | . . . . . Average Slot Usage (%) 6 | . . 9 9 4 Impact Weapon 6 | . . 9 9 4 Peak Build Rating 3 | . . 2 2 3 Average Rating 1 | . . 1 2 1 On Entrance . | . . . 2 2 Avg Prop Armor Cover (%) . | . . . . . Naked Turns 114 | . 55 11 . 48 Heaviest Build 2 | . . 2 2 2 Greatest Support 3 | 3 3 3 3 3 Greatest Overweight (x) . | . . . . . Average Overweight (x) . | . . . . . Largest Inventory Capacity 5 | 5 5 5 5 5 Average Capacity 5 | 5 5 5 5 5 Most Carried 3 | . . . . 3 Average Carried . | . . . . 1 Final Capacity 5 | 5 5 5 5 5 Final Carried 3 | . . . . 3 Class Distribution -------------------- 100% | Mutant Dominant Class ---------------- Mutant | -10/Materials Mutant | -9/Materials Mutant | -8/Materials Mutant | -8/Garrison Resources | -11 -10 -9 -8 -8 ----------- Run | Yrd Mat Mat Mat Gar Matter Collected 217 | 113 . 104 . . Remotely . | . . . . . Salvage Created 159 | . . 159 . . Parts 5 | . . 5 . . Haulers Intercepted . | . . . . . Recyclers Shooed . | . . . . . Parts Field Recycled . | . . . . . Retrieved Matter . | . . . . . Parts Self-Destructed . | . . . . . Prevented . | . . . . . Parts Restored . | . . . . . Kills | -11 -10 -9 -8 -8 ------- Run | Yrd Mat Mat Mat Gar Combat Hostiles Destroyed 4 | . . 4 . . Melee 3 | . . 3 . . Classes Destroyed 1 | . . 1 . . Grunt 4 | . . 4 . . Best Kill Streak 2 | . . 2 . . Combat Bots Only 2 | . . 2 . . Max Kills in Single Turn 1 | . . 1 . . Gunslinging . | . . . . . Exploded . | . . . . . Melee 1 | . . 1 . . Uniques/NPCs Destroyed . | . . . . . Combat | -11 -10 -9 -8 -8 -------- Run | Yrd Mat Mat Mat Gar Hostile Shots Fired 73 | . 1 31 3 38 Missed 17 | . . 8 2 7 Hits 56 | . 1 23 1 31 Projectile 56 | . 1 23 1 31 Critical Strikes 3 | . . . . 3 Damage Taken 845 | 2 10 253 6 574 Core 725 | 2 10 163 6 544 Absorbed by Shields . | . . . . . Core Remaining (%) 84 | 99 95 59 . . Volleys Fired . | . . . . . Largest . | . . . . . Hottest . | . . . . . Shots Fired . | . . . . . Gun . | . . . . . Cannon . | . . . . . Launcher . | . . . . . Special . | . . . . . Kinetic . | . . . . . Thermal . | . . . . . Explosive . | . . . . . Electromagnetic . | . . . . . Robot Hit Streak . | . . . . . Robot Miss Streak . | . . . . . Penetration Max . | . . . . . Secondary Targets . | . . . . . Shots Hit Robots 11 | . . 8 . 3 Core Hits 1 | . . 1 . . Critical Kills . | . . . . . Critical Parts Destroyed 2 | . . 2 . . Critical Strikes 2 | . . 2 . . Smash 2 | . . 2 . . Melee Attacks 22 | . . 18 . 4 Impact 22 | . . 18 . 4 Slashing . | . . . . . Piercing . | . . . . . Sneak Attacks 1 | . . . . 1 Combat Hostiles . | . . . . . Follow-up Attacks . | . . . . . Damage Inflicted 492 | 5 . 312 . 175 Guns . | . . . . . Cannons . | . . . . . Explosions . | . . . . . Melee 436 | . . 312 . 124 Ramming 56 | 5 . . . 51 Kinetic . | . . . . . Thermal . | . . . . . Explosive . | . . . . . Electromagnetic . | . . . . . Impact 436 | . . 312 . 124 Slashing . | . . . . . Piercing . | . . . . . Highest Corruption 5 | 1 1 4 . 5 Average Corruption 2 | 1 1 3 . 2 Corruption Purged . | . . . . . Corruption Blocked . | . . . . . Effects 4 | . . 3 . 1 Matter Fused 3 | . . 3 . . Heat Flow Errors 1 | . . . . 1 Overload Shots . | . . . . . Overflow Damage 112 | . . 112 . . Projectiles . | . . . . . Explosions . | . . . . . Melee 112 | . . 112 . . Knockbacks . | . . . . . Impact . | . . . . . Kinetic . | . . . . . Secondary . | . . . . . Self-Inflicted Damage 38 | 2 . . . 36 Shots . | . . . . . Rammed 13 | 2 . . . 11 Targets Rammed 13 | 2 . . . 11 Kicked . | . . . . . Crushed . | . . . . . Highest Temperature 166 | . . . . 166 Average Temperature 76 | . . . . 76 Received Heat Transfer 360 | . 6 138 . 216 Siege Activations . | . . . . . Martial Activations . | . . . . . Shielding Activations . | . . . . . Robots Disrupted . | . . . . . Combat Hostiles . | . . . . . Robots Corrupted 1 | . . 1 . . Combat Hostiles 1 | . . 1 . . Parts Fried 1 | . . 1 . . Impact Corruptions 4 | . . 4 . . Robots Melted . | . . . . . Combat Hostiles . | . . . . . Parts Melted . | . . . . . Heat Transferred . | . . . . . Parts Sabotaged . | . . . . . Parts Stolen . | . . . . . Parts Stripped . | . . . . . Power Chain Reactions . | . . . . . Alert | -11 -10 -9 -8 -8 ------- Run | Yrd Mat Mat Mat Gar Maximum Alert Level . | . . . . . Low Security (%) 100 | 100 100 100 100 100 Level 1 . | . . . . . Level 2 . | . . . . . Level 3 . | . . . . . Level 4 . | . . . . . Level 5 . | . . . . . High Security . | . . . . . Max Security . | . . . . . Peak Influence 140 | . . 70 29 140 Initial 29 | . . . 29 14 Average 30 | . . 18 25 72 Influence Increases 242 | . . 102 4 136 Destroy 0b10 Robot/C 100 | . . 80 . 20 Destroy Leader 20 | . . 20 . . Allied During Kill 1 | . . . . 1 Successful Hack 4 | . . . 4 . Disable Machine 15 | . . . . 15 Anti-Garrison Action 100 | . . . . 100 Destroy Structure 2 | . . 2 . . Influence Decreases 102 | . . 32 51 19 Entered New Map 50 | . . . 41 9 Time Decay 42 | . . 32 10 . Lost Part 10 | . . . . 10 Squads Dispatched 1 | . . 1 . . Investigation . | . . . . . Extermination . | . . . . . Reinforcement 1 | . . 1 . . Assault . | . . . . . Garrison . | . . . . . Intercept . | . . . . . Searches Triggered . | . . . . . Construction Impeded . | . . . . . Haulers Reinforced . | . . . . . Active Scanning Responses . | . . . . . Cargo Convoy Interrupts . | . . . . . Stealth | -11 -10 -9 -8 -8 --------- Run | Yrd Mat Mat Mat Gar Distress Signals 1 | . . 1 . . Communications Jammed . | . . . . . Distress Signals . | . . . . . Times Spotted 15 | . 1 9 3 2 Peak Tracking Total 5 | . . 5 3 2 Tactical Retreats . | . . . . . Traps | -11 -10 -9 -8 -8 ------- Run | Yrd Mat Mat Mat Gar Traps Triggered 3 | . . 2 . 1 Indirectly . | . . . . . Trap Hack Attempts . | . . . . . Triggered . | . . . . . Disarmed . | . . . . . Reprogrammed . | . . . . . Reused . | . . . . . Traps Extracted . | . . . . . Installed . | . . . . . Triggered . | . . . . . Machines | -11 -10 -9 -8 -8 ---------- Run | Yrd Mat Mat Mat Gar Machines Disabled 2 | . . . . 2 Max in Single Turn 1 | . . . . 1 Garrison Relay 1 | . . . . 1 Machines Repaired . | . . . . . Machines Dismantled . | . . . . . Machines Sabotaged . | . . . . . Overloaded Fab Kills . | . . . . . Hacking | -11 -10 -9 -8 -8 --------- Run | Yrd Mat Mat Mat Gar Machines Accessed 2 | . . . 1 1 Terminals 1 | . . . . 1 Fabricators . | . . . . . Repair Stations . | . . . . . Recycling Units . | . . . . . Scanalyzers . | . . . . . Garrison Access 1 | . . . 1 . Total Hacks 8 | . . . 4 4 Successful 2 | . . . 1 1 Failed 6 | . . . 3 3 Catastrophic . | . . . . . Database Lockouts . | . . . . . Manual . | . . . . . Terminals 4 | . . . . 4 Fabricators . | . . . . . Repair Stations . | . . . . . Recycling Units . | . . . . . Scanalyzers . | . . . . . Garrison Access 4 | . . . 4 . Terminal Hacks 1 | . . . . 1 Open Door 1 | . . . . 1 Fabricator Hacks . | . . . . . Repair Station Hacks . | . . . . . Recycling Unit Hacks . | . . . . . Scanalyzer . | . . . . . Garrison Access Hacks 1 | . . . 1 . Unlock Access 1 | . . . 1 . Unauthorized Hacks . | . . . . . Terminals . | . . . . . Fabricators . | . . . . . Repair Stations . | . . . . . Recycling Units . | . . . . . Scanalyzers . | . . . . . Garrison Access . | . . . . . Data Cores Recovered . | . . . . . Used . | . . . . . Hacking Detections 2 | . . . 1 1 Full Trace Events 1 | . . . . 1 Feedback Events 1 | . . . . 1 Corruption 1 | . . . . 1 Feedback Blocked . | . . . . . Robot Schematics Acquired . | . . . . . Robots Built . | . . . . . Authchips . | . . . . . Time . | . . . . . Total Robot Build Rating . | . . . . . Part Schematics Acquired . | . . . . . Parts Built . | . . . . . Authchips . | . . . . . Time . | . . . . . Total Part Build Rating . | . . . . . Part Studies Acquired . | . . . . . Parts Repaired . | . . . . . Time . | . . . . . Parts Recycled . | . . . . . Recycled Matter . | . . . . . Retrieved Matter . | . . . . . Retrieved Components . | . . . . . Parts Scanalyzed . | . . . . . Part Schematics Acquired . | . . . . . Parts Damaged . | . . . . . Bothacking | -11 -10 -9 -8 -8 ------------ Run | Yrd Mat Mat Mat Gar Used RIF Installer . | . . . . . Robots Hacked . | . . . . . Non-combat . | . . . . . Combat . | . . . . . Robot Hacks Applied . | . . . . . Relay Couplers Released 3 | . . . . 3 Machine Destruction 3 | . . . . 3 Fabnet Peak Effective % . | . . . . . Robots Rewired 1 | . . . . 1 Allies Hacked . | . . . . . Hacks Repelled . | . . . . . Allies | -11 -10 -9 -8 -8 -------- Run | Yrd Mat Mat Mat Gar Total Allies 1 | . . . . 1 Largest Group 1 | . . . . 1 Highest-Rated Group 39 | . . . . 39 Highest-Rated Ally 39 | . . . . 39 Total Orders . | . . . . . Ally Attacks 10 | . . . . 10 Total Damage 185 | . . . . 185 Kills 1 | . . . . 1 Allies Corrupted . | . . . . . Allies Melted . | . . . . . Intel | -11 -10 -9 -8 -8 ------- Run | Yrd Mat Mat Mat Gar Active Infowar (turns) . | . . . . . Robot Analysis Total . | . . . . . Derelict Logs Recovered . | . . . . . Drone Launches . | . . . . . Drone Recoveries . | . . . . . Exploration | -11 -10 -9 -8 -8 ------------- Run | Yrd Mat Mat Mat Gar Turns Passed 351 | 11 55 158 32 95 Spaces Moved 458 | 18 104 223 63 50 Core 458 | 18 104 223 63 50 Treads . | . . . . . Legs . | . . . . . Wheels . | . . . . . Hover . | . . . . . Flight . | . . . . . Fastest Speed 50 | 50 50 50 50 50 Average Speed 50 | 50 50 50 50 50 Slowest Speed 50 | 50 50 50 50 50 Overloaded Moves . | . . . . . Propulsion Burnouts . | . . . . . Robots Hopped . | . . . . . Potential Cave-ins . | . . . . . Cave-ins Triggered . | . . . . . Exploration Rate (%) 17 | 3 30 32 12 8 Regions Visited 4 Branch Regions . Pre-discovered Areas . | . . . . . Known Exits Taken 1 | . . . 1 . Unknown Exits Taken 3 | 1 1 1 . . Scrap Searched . | . . . . . Spaces Dug 2 | . . 2 . . Terrain Destroyed 2 | . . 2 . . Melee 2 | . . 2 . . Projectile . | . . . . . AOE . | . . . . . Terrain Rammed 4 | . . . . 4 Walls Destroyed . | . . . . . Machines Disabled . | . . . . . Actions | -11 -10 -9 -8 -8 --------- Run | Yrd Mat Mat Mat Gar Total 541 | 19 106 241 62 113 Wait 8 | . 3 . . 5 Move 454 | 17 103 222 62 50 Hop . | . . . . . Pick Up 3 | . . . . 3 Fast Attach 1 | . . 1 . . Attach . | . . . . . Detach . | . . . . . Swap . | . . . . . Drop . | . . . . . Fire . | . . . . . Melee 22 | . . 18 . 4 Ram 16 | 2 . . . 14 Kick . | . . . . . Crush . | . . . . . Escape Stasis 15 | . . . . 15 Rewire 22 | . . . . 22 Trap . | . . . . . Miscellaneous . | . . . . . Route ------- -11/Scrapyard -10/Materials (discovered 2 exits: [*Mat] / [*Min]) -9/Materials -8/Materials -8/Garrison History --------- Turn | Location | Event 5 | -11/Scrapyard | Discovered new exit (range 14) 12 | -11/Scrapyard | Entered Materials 47 | -10/Materials | Discovered new exit (range 6) 66 | -10/Materials | Discovered new exit (range 3) 67 | -10/Materials | Entered another Materials area 67 | -9/Materials | Evolved 2 slots: Weapon x2 224 | -9/Materials | Discovered new exit (range 3) 225 | -9/Materials | Entered another Materials area 225 | -8/Materials | Evolved 2 slots: Weapon x2 255 | -8/Materials | Identified exit to Garrison 257 | -8/Materials | Entered Garrison 273 | -8/Garrison | Triggered checkpoint 285 | -8/Garrison | Garrison Relay disabled 308 | -8/Garrison | Build established: Mutant 311 | -8/Garrison | Core integrity fell below 50% 330 | -8/Garrison | Core integrity fell below 20% 352 | -8/Garrison | Core destroyed Last Messages --------------- Move into an ally to swap places with them. System corrupted: Heat flow error (+197). HV Slug penetrates Y-45 Defender. Door Terminal disabled. Attempting to rewire X4-HLD(b). Y-45 Defender suffers critical hit (Destroy). Attempting to rewire X4-HLD(b). Critical hit (Burn: +37). Attempting to rewire X4-HLD(b). HV Slug penetrates Y-45 Defender. Y-45 Defender suffers critical hit (Destroy). Y-45 Defender destroyed. Attempting to rewire X4-HLD(b). Critical hit (Burn: +37). Attempting to rewire X4-HLD(b). HV Slug penetrates Reinforced Barrier. Slammed into Reinforced Barrier. Destabilizing: System corrupted (+1). Destabilizing: System corrupted (+2). Slammed into Reinforced Barrier. Map ----- +----------------------------------------------------+ | ????????????????????????????????????????? | | ????????????????????????????????????????? | | ????????????????????????????????????????? | | ????????????????????????????????????????? | | ????????????????????????????######??????? | | ????????????????????????????# #??????? | | ????????????????????????????# #??????? | | ????????????????????????????# #??????? | | ????????????????????????????### #??????? | | ??????????????????????????????# #??????? | | ??????????????????????????????# #??????? | | ??????????????????????????????# #??????? | | ????????????????????????####### #??????? | | ????????????????????????# #??????? | | ????????????????????????# ##### | | ????????????????????????# #???# | | ????????????????????????# #???########### | | ????????????????????????# #?????????????? | | ??????????????????????### #?????????????? | | ??????????????????????# #?????????????? | | ??????????????????????# #?????????????? | | ??????????????????????# #?????????????? | | ????????????????####??### #?????????????? | | ????????????#####%%##???# ###???????????? | | ????????????# # % %#???# #"#???????????? | | ????????????#[!#@%% #???# #???????????? | | ????????????#=%# %%#???# "#???????????? | | ????????????#!%[ % ##### "#???????????? | | ????????????# #"#???????????? | | ????????????#### ############???????????? | | ???????????????###??????????????????????? | | ????????????????????????????????????????? | | ????????????????????????????????????????? | | ????????????????????????????????????????? | | ????????????????????????????????????????? | | ????????????????????????????????????????? | | ????????????????????????????????????????? | | ????????????????????????????????????????? | | ????????????????????????????????????????? | | ????????????????????????????????????????? | | ????????????????????????????????????????? | | ????????????????????????????????????????? | | ????????????????????????????????????????? | | ????????????????????????????????????????? | | ????????????????????????????????????????? | | ????????????????????????????????????????? | | ????????????????????????????????????????? | | ????????????????????????????????????????? | | ????????????????????????????????????????? | | ????????????????????????????????????????? | +----------------------------------------------------+ Best States ------------- Heat Dissipation 31 Energy Generation 5 Energy Capacity 100 Matter Stores 300 Matter Capacity 300 Sight Range 16 Terrain Scan Density 10 Evasion (%) 50 Item Schematics ----------------- None Robot Schematics ------------------ None Fabricated ------------ Nothing Repaired ---------- Nothing Studied --------- None Alien Tech Used ----------------- None Achievements -------------- None Challenges ------------ None Game ------ Seed SmartbombStealthLoader Manual? 0 Play Time 00:08:29 Cumulative 14.3 hours Start 2026.08.24 @ 23:43:49 End 2026.08.24 @ 23:53:03 Sessions 1 Manual Loads 0 Difficulty Rogue Special Mode None Game No. 42 Rogue 42 Adventurer 0 Explorer 0 Win Type - Total 0 Types 0/0/0/0/0/0/0/0/0/0 Lore% 13 Gallery% 16 Achievement% 36 Wizard Run 0 Options --------- Layout 1 ASCII 0 Keyboard 0 Movement Arrows Keybinds 0 Fullscreen 2 Font 32/Tamsyn Map View 50x35 Zoom Use 0% Tactical HUD 0 Map Filters NONE Filters NONE Steam 1 RUN: 8c200baa-6e81-40ac-a1d9-b37c82afcf36